Cogmind - Beta 14 @@@ ROGUE MODE // 2024.08.10 @ 17:11:00 Player: saltine Result: Destroyed by S-10 Pest with Light Assault Rifle Performance ------------- Evolutions (0) 0 Regions Visited (2) 400 Robots Destroyed (16) 80 Value Destroyed (502) 502 Prototype IDs (0) 0 Alien Tech Used (0) 0 Bonus (0) 0 TOTAL SCORE: 982 Bonus ------- None Cogmind --------- Core Integrity 0/250 Matter 300/300 Energy 100/100 System Corruption 0% Temperature Cool (0) Movement Treading (160) Location -10/Subcaves Parts ------- > --- POWER (1) -------- (None) > --- PROPULSION (2) --- Light Treads Spiked Treads > --- UTILITY (2) ------ Large Storage Unit > --- WEAPON (2) ------- Light Assault Rifle Light Cannon > --- INVENTORY (15) --- Light Ion Engine Improved Ion Engine Improved Ion Engine Light Treads Compact Wheel Compact Wheel High-capacity Storage Unit Subdweller Optics Subdweller Beam Cannon Assault Rifle Battle Rifle Subdweller Machine Gun Subdweller Machine Gun Peak State ------------ > --- POWER ------------ Improved Ion Engine > --- PROPULSION ------- Light Treads Light Treads > --- UTILITY ---------- Large Storage Unit Makeshift Thermal Plating > --- WEAPON ----------- Light Assault Rifle Light Cannon > --- INVENTORY -------- Improved Ion Engine Improved Ion Engine Light Treads Compact Wheel Compact Wheel High-capacity Storage Unit Assault Rifle Battle Rifle [Rating: 12] Favorites ----------- Power Improved Ion Engine Engine Improved Ion Engine Propulsion Light Treads Treads Light Treads Leg Aluminum Leg Utility Large Storage Unit Storage Large Storage Unit Protection Makeshift Thermal Plating Weapon Light Assault Rifle Ballistic Gun Light Assault Rifle Ballistic Cannon Light Cannon Build | -11 -10 -10 ------- Run | Yrd Mat Sub Slots Evolved . | . . . Power . | . . . Propulsion . | . . . Utility . | . . . Weapon . | . . . Parts Attached 10 | 2 4 4 Power 1 | . 1 . Engine 1 | . 1 . Core . | . . . Reactor . | . . . Propulsion 5 | 2 1 2 Treads 5 | 2 1 2 Leg . | . . . Wheel . | . . . Hover . | . . . Flight . | . . . Utility 2 | . 1 1 Device . | . . . Storage 1 | . 1 . Processor . | . . . Hackware . | . . . Protection 1 | . . 1 Artifact . | . . . Weapon 2 | . 1 1 Energy Gun . | . . . Energy Cannon . | . . . Ballistic Gun 1 | . 1 . Ballistic Cannon 1 | . . 1 Launcher . | . . . Special Weapon . | . . . Impact Weapon . | . . . Slashing Weapon . | . . . Piercing Weapon . | . . . Special Melee Weapon . | . . . Unidentified Prototypes . | . . . Parts Lost 5 | . 1 4 Power 2 | . 1 1 Propulsion 1 | . . 1 Utility 1 | . . 1 Weapon 1 | . . 1 Highest Loss Streak 2 | . 1 2 To Critical Strikes . | . . . Average Slot Usage (%) 80 | . 89 76 Engine 7 | . 12 4 Treads 28 | . 28 28 Storage 15 | . 19 14 Protection 2 | . . 3 Ballistic Gun 18 | . 28 14 Ballistic Cannon 7 | . . 10 Peak Build Rating 12 | 6 9 12 Average Rating 8 | 6 7 8 On Entrance 7 | 6 6 9 Naked Turns . | . . . Heaviest Build 35 | 10 34 35 Greatest Support 40 | 40 40 40 Greatest Overweight (x) . | . . . Average Overweight (x) . | . . . Largest Inventory Capacity 15 | 8 15 15 Average Capacity 13 | 8 10 15 Most Carried 13 | 6 8 13 Average Carried 9 | 4 7 11 Final Capacity 15 | 8 15 15 Final Carried 13 | 4 8 13 Class Distribution -------------------- 100% | Mutant Dominant Class ---------------- Mutant | -10/Materials Mutant | -10/Subcaves Resources | -11 -10 -10 ----------- Run | Yrd Mat Sub Matter Collected 569 | 220 99 250 Remotely . | . . . Salvage Created 503 | . 266 237 Parts 28 | . 17 11 Haulers Intercepted 1 | . 1 . Recyclers Shooed . | . . . Parts Field Recycled . | . . . Retrieved Matter . | . . . Parts Self-Destructed 6 | . . 6 Prevented . | . . . Kills | -11 -10 -10 ------- Run | Yrd Mat Sub Combat Hostiles Destroyed 15 | . 7 8 Guns 11 | . 7 4 Cannons 4 | . . 4 Classes Destroyed 4 | . 3 1 Hauler 1 | . 1 . Swarmer 3 | . 3 . Grunt 6 | . 4 2 Subdweller 6 | . . 6 Best Kill Streak 3 | . 3 2 Combat Bots Only 3 | . 3 2 Max Kills in Single Turn 1 | . 1 1 Gunslinging . | . . . Exploded . | . . . Melee . | . . . Uniques/NPCs Destroyed . | . . . Combat | -11 -10 -10 -------- Run | Yrd Mat Sub Hostile Shots Fired 101 | . 51 50 Missed 29 | . 17 12 Damage Taken 1115 | . 389 726 Core 250 | . 86 164 Absorbed by Shields . | . . . Ignored by Resistances 44 | . . 44 Core Remaining (%) 100 | 100 . . Volleys Fired 86 | . 39 47 Largest 2 | . 2 2 Hottest 55 | . 40 55 Shots Fired 171 | . 78 93 Gun 130 | . 78 52 Cannon 41 | . . 41 Launcher . | . . . Special . | . . . Kinetic 171 | . 78 93 Thermal . | . . . Explosive . | . . . Electromagnetic . | . . . Robot Hit Streak 15 | . 7 15 Robot Miss Streak 4 | . 4 3 Penetration Max . | . . . Secondary Targets 2 | . 2 . Max Gunslinging Chain 1 | . 1 . Shots Hit Robots 120 | . 44 76 Core Hits 34 | . 16 18 Critical Kills . | . . . Critical Parts Destroyed . | . . . Critical Strikes . | . . . Melee Attacks . | . . . Impact . | . . . Slashing . | . . . Piercing . | . . . Sneak Attacks . | . . . Combat Hostiles . | . . . Follow-up Attacks . | . . . Damage Inflicted 1354 | . 395 959 Guns 719 | . 395 324 Cannons 635 | . . 635 Explosions . | . . . Melee . | . . . Ramming . | . . . Kinetic 1354 | . 395 959 Thermal . | . . . Explosive . | . . . Electromagnetic . | . . . Impact . | . . . Slashing . | . . . Piercing . | . . . Highest Corruption . | . . . Average Corruption . | . . . Corruption Purged . | . . . Corruption Blocked . | . . . Overload Shots . | . . . Overflow Damage . | . . . Projectiles . | . . . Explosions . | . . . Melee . | . . . Knockbacks 3 | . . 3 Impact . | . . . Kinetic 3 | . . 3 Secondary . | . . . Self-Inflicted Damage . | . . . Shots . | . . . Rammed . | . . . Targets Rammed . | . . . Kicked . | . . . Crushed . | . . . Highest Temperature 31 | . 31 . Average Temperature 7 | . 7 . Received Heat Transfer 387 | . 204 183 Siege Activations . | . . . Robots Corrupted . | . . . Combat Hostiles . | . . . Parts Fried . | . . . Impact Corruptions . | . . . Robots Melted . | . . . Combat Hostiles . | . . . Parts Melted . | . . . Heat Transferred . | . . . Parts Sabotaged . | . . . Parts Stolen . | . . . Parts Stripped . | . . . Power Chain Reactions . | . . . Alert | -11 -10 -10 ------- Run | Yrd Mat Sub Peak Influence 178 | . 178 . Initial . | . . . Average 59 | . 60 . Maximum Alert Level . | . . . Low Security (%) 100 | 100 100 . Level 1 . | . . . Level 2 . | . . . Level 3 . | . . . Level 4 . | . . . Level 5 . | . . . High Security . | . . . Max Security . | . . . Squads Dispatched 1 | . 1 . Investigation . | . . . Extermination . | . . . Reinforcement 1 | . 1 . Assault . | . . . Garrison . | . . . Intercept . | . . . Searches Triggered . | . . . Construction Impeded . | . . . Haulers Reinforced . | . . . Active Scanning Responses . | . . . Cargo Convoy Interrupts . | . . . Stealth | -11 -10 -10 --------- Run | Yrd Mat Sub Distress Signals 1 | . 1 . Communications Jammed . | . . . Distress Signals . | . . . Times Spotted 29 | . 15 14 Peak Tracking Total 4 | . 4 2 Tactical Retreats . | . . . Traps | -11 -10 -10 ------- Run | Yrd Mat Sub Traps Triggered 2 | . 1 1 Indirectly . | . . . Trap Hack Attempts . | . . . Triggered . | . . . Disarmed . | . . . Reprogrammed . | . . . Reused . | . . . Traps Extracted . | . . . Installed . | . . . Triggered 1 | . . 1 Machines | -11 -10 -10 ---------- Run | Yrd Mat Sub Machines Disabled . | . . . Max in Single Turn . | . . . Machines Repaired . | . . . Machines Dismantled . | . . . Machines Sabotaged . | . . . Overloaded Fab Kills . | . . . Hacking | -11 -10 -10 --------- Run | Yrd Mat Sub Machines Accessed 4 | . 2 2 Terminals 2 | . 2 . Fabricators . | . . . Repair Stations . | . . . Recycling Units . | . . . Scanalyzers . | . . . Garrison Access . | . . . Total Hacks 12 | . 6 6 Successful 10 | . 4 6 Failed 2 | . 2 . Catastrophic . | . . . Database Lockouts . | . . . Manual 4 | . 4 . Terminals 6 | . 6 . Fabricators . | . . . Repair Stations . | . . . Recycling Units . | . . . Scanalyzers . | . . . Garrison Access . | . . . Terminal Hacks 8 | . 2 6 Record 5 | . . 5 Robot Analysis 1 | . 1 . Open Door 1 | . . 1 Maintenance Status 1 | . 1 . Fabricator Hacks . | . . . Repair Station Hacks . | . . . Recycling Unit Hacks . | . . . Scanalyzer . | . . . Garrison Access Hacks . | . . . Unauthorized Hacks 2 | . 2 . Terminals 2 | . 2 . Botnet 1 | . 1 . Operators 1 | . 1 . Fabricators . | . . . Repair Stations . | . . . Recycling Units . | . . . Scanalyzers . | . . . Garrison Access . | . . . Data Cores Recovered . | . . . Used . | . . . Hacking Detections 2 | . 2 . Full Trace Events . | . . . Feedback Events . | . . . Feedback Blocked . | . . . Robot Schematics Acquired . | . . . Robots Built . | . . . Authchips . | . . . Time . | . . . Total Robot Build Rating . | . . . Part Schematics Acquired . | . . . Parts Built . | . . . Authchips . | . . . Time . | . . . Total Part Build Rating . | . . . Parts Repaired . | . . . Time . | . . . Parts Recycled . | . . . Recycled Matter . | . . . Retrieved Matter . | . . . Retrieved Components . | . . . Parts Scanalyzed . | . . . Part Schematics Acquired . | . . . Parts Damaged . | . . . Bothacking | -11 -10 -10 ------------ Run | Yrd Mat Sub Used RIF Installer . | . . . Robots Hacked . | . . . Non-combat . | . . . Combat . | . . . Robot Hacks Applied . | . . . Relay Couplers Released . | . . . Fabnet Peak Effective % . | . . . Robots Rewired . | . . . Allies Hacked . | . . . Hacks Repelled . | . . . Allies | -11 -10 -10 -------- Run | Yrd Mat Sub Total Allies . | . . . Largest Group . | . . . Highest-Rated Group . | . . . Highest-Rated Ally . | . . . Total Orders . | . . . Ally Attacks . | . . . Total Damage . | . . . Kills . | . . . Allies Corrupted . | . . . Allies Melted . | . . . Intel | -11 -10 -10 ------- Run | Yrd Mat Sub Robot Analysis Total 1 | . 1 . Derelict Logs Recovered 1 | . . 1 Drone Launches . | . . . Drone Recoveries . | . . . Exploration | -11 -10 -10 ------------- Run | Yrd Mat Sub Turns Passed 2658 | 11 813 1834 Spaces Moved 1323 | 5 262 1056 Core . | . . . Treads 1323 | 5 262 1056 Legs . | . . . Wheels . | . . . Hover . | . . . Flight . | . . . Fastest Speed 160 | 160 160 160 Average Speed 160 | 160 160 160 Slowest Speed 160 | 160 160 160 Overloaded Moves . | . . . Propulsion Burnouts . | . . . Robots Hopped . | . . . Cave-ins Triggered . | . . . Exploration Rate (%) 38 | 2 48 66 Regions Visited 2 Branch Regions 1 Pre-discovered Areas 1 | . . 1 Known Exits Taken . | . . . Unknown Exits Taken 2 | 1 1 . Scrap Searched . | . . . Spaces Dug . | . . . Terrain Destroyed . | . . . Melee . | . . . Projectile . | . . . AOE . | . . . Terrain Rammed . | . . . Walls Destroyed . | . . . Machines Disabled . | . . . Actions | -11 -10 -10 --------- Run | Yrd Mat Sub Total 1715 | 8 593 1114 Wait 282 | . 282 . Move 1321 | 4 261 1056 Hop . | . . . Pick Up 11 | . 5 6 Fast Attach 4 | . 3 1 Attach 2 | . . 2 Detach . | . . . Swap 4 | 2 1 1 Drop 5 | 2 2 1 Fire 86 | . 39 47 Melee . | . . . Ram . | . . . Kick . | . . . Crush . | . . . Escape Stasis . | . . . Rewire . | . . . Trap . | . . . Miscellaneous . | . . . Route ------- -11/Scrapyard -10/Materials (discovered 2 exits: [*Mat] / *Sub) -10/Subcaves (discovered 3 exits: [*Mat x2] / [*Rec]) History --------- Turn | Location | Event 6 | -11/Scrapyard | Discovered new exit (range 2) 12 | -11/Scrapyard | Entered Materials 264 | -10/Materials | Discovered new exit (range 4) 318 | -10/Materials | Build established: Mutant 799 | -10/Materials | Discovered new exit (range 5) 825 | -10/Materials | Entered Subcaves 836 | -10/Subcaves | Learned Materials garrison access intel 1164 | -10/Subcaves | Shifting Twisted Machinery released Mak. Thermal Plating 1172 | -10/Subcaves | Shifting Twisted Machinery released Battle Rifle 1301 | -10/Subcaves | Core integrity fell below 50% 1354 | -10/Subcaves | Discovered new exit (range 6) 1460 | -10/Subcaves | Discovered new exit (range 10) 1548 | -10/Subcaves | Visited Clippyterm 1553 | -10/Subcaves | Learned location of Section 7 (-3) 1553 | -10/Subcaves | Learned Factory fabricator intel 1665 | -10/Subcaves | Core integrity fell below 20% 1716 | -10/Subcaves | A swath of the cavern ceiling suddenly collapsed 1798 | -10/Subcaves | Shifting Twisted Machinery released Sub. Beam Cannon 2271 | -10/Subcaves | A swath of the cavern ceiling suddenly collapsed 2658 | -10/Subcaves | Discovered new exit (range 14) 2659 | -10/Subcaves | Destroyed by S-10 Pest with Light Assault Rifle Last Messages --------------- 01668_ Subatomizers dissect the Sub. Machine Gun. 01672_ LF-3B1(R) destroyed. 01675_ Acquired 15 matter. 01676_ Acquired 58 matter. 01681_ Subatomizers dissect the Sub. Machine Gun. 01681_ Acquired Sub. Beam Cannon. 01684_ Acquired Sub. Machine Gun. 01688_ Acquired 6 matter. 01690_ Acquired 10 matter. 01695_ Subatomizers dissect the Sub. Optics. A swath of the cavern ceiling suddenly collapses. 01760_ Acquired 21 matter. 01789_ Acquired 8 matter. Sub. Beam Cannon falls loose from the Twisted Machinery. 01902_ Acquired 10 matter. 02192_ Connecting with UFD SUBCON Station... >>Open Door Sealed Heavy Doors opened. A swath of the cavern ceiling suddenly collapses. 02658_ EXIT=FOUND Map ----- +----------------------------------------------------+ | #????????????????????????????#### # ##??????????? | | #????????????????????????????# # ## ######?????? | | ##????????????????????###?????## ##### ## ##????? | | #????????????????????## #????## # " # ##???? | | ??????????????????#### ???## # #### #???? | | ?????????????????## #?### # ##??### # #???? | | #####????????????#"" ###& ##?????### ##???? | | #???????###??#"" ##??????# #???? | | #??????##"#??# < # # # #???????## ##???? | | #??##### "#??## ########????????# ##???? | | #??# ##??### ##???????####??# ##??? | | #??# #????## #???????# ##?# #??? | | #?## #????# "##?####### ### #??? | | ### ###### "#?## ""## %#??? | | ## " # !#% #?# "" #??? | | ### #?# ## #??? | | #?#### ## %% #?## ####### #??? | | ?????###### #### ##??## ##????# ###??? | | ??????????## % ##??####????# #????# ##????? | | ???????????# ##???????????# #???? ###?????? | | ???????????#####????????????# ##???# #???????? | | ???????????????????????????## ##????# #???????? | | ????????????"?????????????## ###?????# ???????? | | ???????????#" #??????## ##??????? ???????? | | #???????????""t ss ### ##???????? ???????? | | #???????#< % @ #????????### ##??????? | | #?????????""t ss #??????????## #???????? | | ??????#" ###### #??????????? ????????? | | #??????"??????????## ##??????????? ????????? | | ##?????????????????? #???????????? ????????? | | #??????????????????? ?????????????????????? | | #?????????????????? % ?????????????????????? | | #?????????????????? % % ????????????????????? | | ####?????????????????? ] ????????????????????? | | ##???????????????????? """"" ????????????????????? | | ?????????????????????? ""##"% ???????????????????? | | ?????????????????????? ""??" ???????????????????? | | ????????????????????? ?????? ???????????????????? | | ????????????????????????????? ??????????????????? | | ????????????????????????????? ???????????????????? | | ?????????????????????????????????????????????????? | | ?????????????????????????????????????????????????? | | ?????????????????????????????????????????????????? | | ?????????????????????????????????????????????????? | | ?????????????????????????????????????????????????? | | ?????????????????????????????????????????????????? | | ?????????????????????????????????????????????????? | | ?????????????????????????????????????????????????? | | ?????????????????????????????????????????????????? | | ?????????????????????????????????????????????????? | +----------------------------------------------------+ Best States ------------- Heat Dissipation 25 Energy Generation 12 Energy Capacity 265 Matter Stores 300 Matter Capacity 300 Sight Range 16 Terrain Scan Density 10 Armor Coverage 100 Resistance: TH 10 Evasion (%) 40 Recoil Reduction 2 Item Schematics ----------------- None Robot Schematics ------------------ None Fabricated ------------ Nothing Alien Tech Used ----------------- None Achievements -------------- None Challenges ------------ None Game ------ Seed ThermalFieldStorm Manual? 0 Play Time 00:12:34 Cumulative 128.6 hours Start 2024.08.10 @ 17:01:21 End 2024.08.10 @ 17:11:00 Sessions 1 Manual Loads 0 Difficulty Rogue Special Mode None Game No. 112 Rogue 112 Adventurer 0 Explorer 0 Win Type - Total 4 Types 2/0/2/0/0/0/0/0/0 Lore% 61 Gallery% 60 Achievement% 56 Wizard Run 0 Options --------- Layout 0 ASCII 0 Keyboard 0 Movement Arrows Keybinds 0 Fullscreen 2 Font 18/SmallcapsGlow Map View 76x50 Zoom Use 0% Tactical HUD 1 Map Filters NONE Filters NONE Steam 1 RUN: 31b1c27a-7e0a-440d-9f8a-116674c1c570